bitfinex/quotes_ETHUSD_20250318
["timestamp","ask_amount","ask_price","bid_price","bid_amount"]
[1742294773836,3.5503,1899.8,1899.6,5.26405]
[1742294774036,7.68674723,1899.7,1899.6,5.26405]
[1742294774340,7.75483723,1899.7,1899.6,5.26405]
[1742294777938,3.06809,1899.7,1899.6,5.26405]
[1742294778139,0.06809,1899.7,1899.6,6.923029]
[1742294779645,0.06809,1899.7,1899.6,7.745129]
[1742294779949,7.68674723,1899.9,1899.8,5.26371]
[1742294780150,7.75450802,1899.9,1899.8,5.26371]
[1742294782544,3.06776079,1899.9,1899.8,5.26371]
[1742294790973,0.06776079,1899.9,1899.8,7.14710098]
[1742294791251,4.68674723,1900.3,1900.2,5.2626]
[1742294795453,5.23704723,1900.3,1900.2,5.2626]
[1742294796236,5.30285524,1900.3,1900.2,5.2626]
[1742294796572,5.90189974,1900.3,1900.2,5.2626]
[1742294798172,8.90189974,1900.3,1900.0,5.26312]
[1742294798477,5.23704723,1900.1,1899.9,5.2634]
[1742294798642,8.21045195,1900.0,1899.8,5.2636]
[1742294798951,4.68674723,1899.9,1899.8,5.2636]
[1742294799352,4.7525153,1899.9,1899.8,5.2636]
[1742294799753,0.5503,1899.8,1899.7,5.26398]
[1742294799955,1.02555153,1899.8,1899.7,5.26398]
[1742294800157,1.09090009,1899.8,1899.7,5.26398]
[1742294800680,10.11090009,1899.8,1899.6,5.26409]
[1742294800981,4.68674723,1899.7,1899.6,5.26409]
[1742294801190,4.75203585,1899.7,1899.6,5.26409]
[1742294801482,5.33245936,1899.7,1899.6,5.26409]
[1742294803886,3.0,1899.6,1899.5,5.26451]
[1742294804466,3.06528862,1899.6,1899.5,5.26451]
[1742294805886,3.06528862,1899.6,1899.4,5.2648]
[1742294806093,7.68674723,1899.5,1899.4,5.26465]
[1742294806461,7.75167621,1899.5,1899.4,5.26465]
[1742294807157,7.75167621,1899.5,1899.4,6.05995]
[1742294810697,0.06492898,1899.5,1899.4,6.05995]
[1742294811003,3.0,1899.7,1899.6,6.02396]
[1742294811166,6.02,1899.8,1899.7,5.26398]
[1742294811569,4.68674723,1899.9,1899.8,5.26371]
[1742294820205,4.68674723,1899.9,1899.7,10.52765]
[1742294820516,4.68674723,1899.9,1899.8,5.26371]
[1742294821202,7.68674723,1899.9,1899.8,5.26371]
[1742294826929,7.75187601,1899.9,1899.8,5.26371]
[1742294828599,3.06512878,1899.9,1899.8,7.108058]
[1742294828829,0.06512878,1899.9,1899.8,7.108058]
[1742294829026,10.70674723,1900.2,1900.1,5.26288]
[1742294829229,7.7497367,1900.2,1900.1,5.26288]
[1742294829630,7.7497367,1900.2,1900.0,5.26303]
[1742294829934,0.77497367,1900.1,1900.0,5.26303]
[1742294830096,3.77497367,1900.1,1899.8,5.26367]
[1742294830296,0.5503,1899.9,1899.8,5.2635]
[1742294830502,4.23788975,1899.9,1899.6,10.52822]
[1742294830702,0.42378898,1899.8,1899.7,5.26397]
[1742294830902,5.11053621,1899.8,1899.7,5.26397]
[1742294831337,5.1737057,1899.8,1899.7,5.26397]
[1742294831497,3.0,1899.7,1899.6,5.26407]
[1742294832103,3.06316949,1899.7,1899.6,5.26407]
[1742294832304,3.92015998,1899.7,1899.5,5.26443]
[1742294832523,3.0,1899.5,1899.4,5.26478]
[1742294832927,3.06283943,1899.5,1899.4,5.26478]
[1742294835808,0.06283943,1899.5,1899.4,5.26478]
[1742294837137,3.06283943,1899.5,1899.4,5.26478]
[1742294837434,0.7852287,1899.5,1899.3,10.52997]
[1742294837638,7.68674723,1899.4,1899.3,5.26494]
[1742294838135,7.74941659,1899.4,1899.3,5.26494]
[1742294839010,7.74941659,1899.4,1899.2,5.26529]
[1742294839011,5.29971659,1899.4,1899.2,5.26529]
[1742294839242,3.77494166,1899.3,1899.2,5.26537]
[1742294839536,3.83709078,1899.3,1899.2,5.26537]
[1742294840549,0.06214912,1899.3,1899.2,5.26537]
[1742294840938,4.68674723,1899.4,1899.3,5.26509]
[1742294841310,4.74879628,1899.4,1899.3,5.26509]
[1742294842521,0.06204905,1899.4,1899.3,5.26509]
[1742294842707,0.06204905,1899.4,1899.3,6.08049]
[1742294842913,10.70674723,1899.7,1899.6,6.05486]
[1742294843914,4.68674723,1899.7,1899.6,6.05486]
[1742294846017,4.68674723,1899.7,1899.6,5.26426]
[1742294846622,7.68674723,1899.7,1899.5,5.2644]
[1742294846844,6.00572195,1899.6,1899.4,5.2647]
[1742294847149,4.68674723,1899.5,1899.4,5.26469]
[1742294851374,7.68674723,1899.5,1899.4,5.26469]
[1742294853457,8.23704723,1899.5,1899.3,5.26493]
[1742294853626,0.76867472,1899.4,1899.3,5.26493]
[1742294854522,0.76867472,1899.4,1899.2,5.26526]
[1742294854523,3.76867472,1899.4,1899.2,5.26526]
[1742294854724,4.68674723,1899.3,1899.2,5.26526]
[1742294855025,7.68674723,1899.3,1899.2,5.26526]
[1742294855536,8.49745227,1899.3,1899.2,5.26526]
[1742294855737,8.49745227,1899.3,1899.1,10.53105]
[1742294856054,8.49745227,1899.3,1899.1,5.26552]
[1742294856249,3.06228922,1899.2,1899.1,5.26552]
[1742294857918,3.06228922,1899.2,1899.0,5.2658]
[1742294858249,3.0,1899.1,1899.0,5.26575]
[1742294858758,3.06207907,1899.1,1899.0,5.26575]
[1742294859254,3.06207907,1899.1,1898.9,10.53223]
[1742294859552,4.68674723,1899.0,1898.9,10.53211]
[1742294859849,4.68674723,1899.0,1898.9,5.26603]
[1742294860051,3.0,1898.9,1898.8,5.26642]
[1742294860242,4.7488263,1898.9,1898.8,5.26642]
[1742294863423,4.7488263,1898.9,1898.8,6.02202]
[1742294863866,7.7488263,1898.9,1898.8,6.02202]
[1742294864377,0.06207907,1898.9,1898.8,6.02202]
[1742294864544,0.06207907,1898.9,1898.8,7.656186]
[1742294867326,0.06207907,1898.9,1898.8,6.900586]
[1742294867527,4.7488263,1898.9,1898.8,5.26642]
[1742294867754,4.68674723,1898.9,1898.8,5.26642]
[1742294867932,4.74815575,1898.9,1898.8,5.26642]
[1742294869479,7.74815575,1898.9,1898.8,5.26642]
[1742294873042,7.74815575,1898.9,1898.8,6.08802]
[1742294873249,0.06140852,1898.9,1898.8,7.223486]
[1742294873470,4.68674723,1899.1,1899.0,5.26592]
[1742294873776,4.74817578,1899.1,1899.0,5.26592]
[1742294875152,0.06142855,1899.1,1899.0,6.04052]
[1742294875449,3.0,1899.2,1899.1,5.26565]
[1742294875649,3.06142855,1899.2,1899.1,5.26565]
[1742294876288,3.06142855,1899.2,1899.1,7.20431999]
[1742294876289,0.06142855,1899.2,1899.1,7.20431999]
[1742294876461,0.06142855,1899.2,1899.1,7.151667]
[1742294876660,4.68674723,1899.6,1899.5,5.26454]
[1742294876860,7.74817578,1899.6,1899.5,5.26454]
[1742294877282,4.74817578,1899.6,1899.5,5.26454]
[1742294881492,4.74817578,1899.6,1899.4,16.33779]
[1742294881691,4.74817578,1899.6,1899.4,5.8084]
[1742294881880,4.74817578,1899.6,1899.4,11.07312]
[1742294882277,4.74817578,1899.6,1899.4,5.053]
[1742294882659,3.0,1899.5,1899.4,5.053]
[1742294882860,3.06236926,1899.5,1899.4,5.053]
[1742294883093,3.06236926,1899.5,1899.3,5.26498]
[1742294884090,3.06236926,1899.5,1899.3,5.82765182]
[1742294884290,3.06236926,1899.5,1899.4,5.26482]
[1742294884874,3.06236926,1899.5,1899.3,5.82765182]
[1742294885376,3.06236926,1899.5,1899.2,6.08261]
[1742294885577,4.68674723,1899.4,1899.2,11.13461]
[1742294885986,0.06230922,1899.3,1899.2,11.13461]
[1742294886360,4.68674723,1899.5,1899.2,11.13459]
[1742294886560,0.06230922,1899.3,1899.2,11.13459]
[1742294886796,4.68674723,1899.5,1899.2,11.13454]
[1742294886991,0.06230922,1899.3,1899.2,11.13454]
[1742294887191,4.68674723,1899.5,1899.2,5.8693]
[1742294887425,4.68674723,1899.5,1899.0,5.26588]
[1742294887426,4.74905645,1899.3,1899.0,6.07018]
[1742294887569,4.68674723,1899.1,1898.9,6.07058]
[1742294888179,0.06230922,1899.0,1898.9,6.07058]
[1742294888490,3.06230922,1899.0,1898.7,6.0623]
[1742294888659,4.68674723,1898.8,1898.7,5.051]
[1742294888865,4.74879627,1898.8,1898.6,10.31788]
[1742294889669,4.74879627,1898.8,1898.6,15.58479]
[1742294890464,4.74879627,1898.8,1898.6,10.31788]
[1742294890867,4.74879627,1898.8,1898.6,5.051]
[1742294891895,4.74879627,1898.8,1898.5,11.32994]
[1742294892097,4.74879627,1898.8,1898.5,6.06275]
[1742294892996,3.0,1898.7,1898.4,5.26754]
[1742294893196,5.2236759,1898.8,1898.4,10.31954]
[1742294893197,3.0,1898.5,1898.4,10.31954]
[1742294893581,4.68674723,1898.6,1898.4,10.31954]
[1742294893899,0.06203903,1898.5,1898.4,10.31954]
[1742294894699,0.06203903,1898.5,1898.4,5.26754]
[1742294896399,0.06203903,1898.5,1898.3,11.14605]
[1742294896400,0.06203903,1898.5,1898.3,6.09405]
[1742294896694,4.68674723,1898.4,1898.2,10.31999]
[1742294896899,0.06081782,1898.3,1898.2,10.31999]
[1742294897094,0.06081782,1898.3,1898.2,5.052]
[1742294897301,3.0,1898.3,1897.8,6.08505]
[1742294897597,4.68674723,1898.1,1897.9,5.26885]
[1742294897768,4.68674723,1898.1,1897.9,10.5377]
[1742294897967,4.68674723,1898.1,1897.8,0.8158]
[1742294897968,0.06038713,1898.0,1897.8,6.08495]
[1742294898168,5.23704723,1897.9,1897.3,1.60302579]
[1742294898396,3.06038713,1898.0,1897.3,1.60302579]
[1742294898397,4.68674723,1897.7,1897.6,5.26954]
[1742294898602,3.0,1897.8,1897.7,5.26929]
[1742294901304,3.06008653,1897.8,1897.7,5.26929]
[1742294903406,3.06008653,1897.8,1897.7,6.401134]
[1742294903407,0.06008653,1897.8,1897.7,6.401134]
[1742294903709,4.68674723,1898.2,1898.1,5.26842]
[1742294903905,4.68674723,1898.2,1898.0,5.26858]
[1742294903906,11.073,1898.6,1898.3,10.53562]
[1742294904107,7.68674723,1898.4,1898.3,5.26775]
[1742294905210,4.68674723,1898.4,1898.3,5.26775]
[1742294907601,5.23704723,1898.4,1898.3,5.26775]
[1742294907807,4.68674723,1898.4,1898.3,5.26775]
[1742294908206,0.5503,1898.6,1898.4,5.26732]
[1742294908410,0.5503,1898.6,1898.4,10.53471]
[1742294908701,0.97408898,1898.6,1898.4,5.26732]
[1742294908909,3.0,1898.4,1898.3,5.26784]
[1742294909104,4.68674723,1898.4,1898.3,5.26784]
[1742294914414,16.7312519,1898.8,1898.4,5.26748]
[1742294914415,0.5503,1898.8,1898.4,5.26748]
[1742294914616,4.68674723,1898.6,1898.5,5.26731]
[1742294916416,4.74661355,1898.6,1898.5,5.26731]
[1742294917499,4.74661355,1898.6,1898.5,6.3208]
[1742294917717,0.05986632,1898.6,1898.5,6.3208]
[1742294917880,0.05986632,1898.6,1898.5,7.0786]
[1742294918080,4.68674723,1898.8,1898.7,5.26676]
[1742294918311,4.74661355,1898.8,1898.7,5.26676]
[1742294919389,0.05986632,1898.8,1898.7,5.26676]
[1742294919818,7.68674723,1898.9,1898.8,5.26648]
[1742294925326,7.68674723,1899.0,1898.9,5.2662]
[1742294927007,8.59207723,1899.6,1899.5,5.26454]
[1742294928094,3.0,1899.5,1899.4,5.26462]
[1742294928311,4.68674723,1899.5,1899.4,5.26462]
[1742294928509,4.68674723,1899.5,1899.3,5.265]
[1742294928841,8.15542195,1899.4,1899.3,5.265]
[1742294929017,7.68674723,1899.4,1899.3,5.265]
[1742294930696,3.0,1899.4,1899.3,5.265]
[1742294931395,3.0614686,1899.4,1899.3,5.265]
[1742294932825,0.0614686,1899.4,1899.3,5.265]
[1742294933029,0.0614686,1899.4,1899.3,6.904106]
[1742294933223,4.68674723,1899.7,1899.6,5.26426]
[1742294941412,5.23704723,1899.7,1899.6,5.26426]
[1742294945039,4.68674723,1899.7,1899.6,6.09356]
[1742294945241,4.68674723,1899.7,1899.6,7.229358]
[1742294946026,4.68674723,1899.9,1899.8,5.26371]
[1742294946234,7.68674723,1899.9,1899.8,5.26371]
[1742294949242,4.68674723,1900.0,1899.9,6.08853]
[1742294949736,0.5503,1900.3,1900.2,5.2626]
[1742294950144,0.90533,1900.3,1899.7,0.8251]
[1742294950439,0.90533,1900.3,1900.0,5.26306]
[1742294950828,7.68674723,1900.1,1900.0,5.26303]
[1742294953743,4.68674723,1900.1,1900.0,6.08863]
[1742294953945,4.68674723,1900.1,1900.0,7.223824]
[1742294955028,0.5503,1900.5,1900.0,7.223824]
[1742294955229,0.5503,1900.5,1900.4,5.26205]
[1742294955455,3.0,1900.4,1900.3,5.2622]
[1742294955644,7.68674723,1900.4,1900.3,5.2622]
[1742294955846,0.5503,1901.0,1900.9,5.26066]
[1742294956271,3.5503,1901.0,1900.9,5.26066]
[1742294956570,8.23704723,1901.0,1900.9,5.26066]
[1742294956746,7.68674723,1901.0,1900.9,5.26066]
[1742294957265,4.68674723,1901.0,1900.9,5.26066]
[1742294959671,0.5503,1900.9,1900.8,5.26094]
[1742294959963,3.0,1900.7,1900.6,5.26148]
[1742294961141,3.06411929,1900.7,1900.6,5.26148]
[1742294962970,8.26148,1900.6,1900.5,5.26165]
[1742294963268,9.04775227,1900.6,1900.5,5.26177]
[1742294963450,9.11173164,1900.6,1900.5,5.26177]
[1742294964452,3.0,1900.5,1900.4,5.2619]
[1742294965169,3.06397937,1900.5,1900.4,5.2619]
[1742294966573,0.06397937,1900.5,1900.4,6.0541]
[1742294966743,0.06397937,1900.5,1900.4,7.711959]
[1742294966945,4.68674723,1900.7,1900.6,5.26149]
[1742294967145,4.74829669,1900.7,1900.6,5.26149]
[1742294971181,0.06154946,1900.7,1900.6,5.26149]
[1742294971582,8.23704723,1901.0,1900.9,5.26066]
[1742294975582,7.68674723,1901.0,1900.9,5.26066]
[1742294976183,7.7468531,1901.0,1900.9,5.26066]
[1742294979584,3.06010587,1901.0,1900.9,5.26066]
[1742294979765,7.7468531,1901.0,1900.9,5.26066]
[1742294980285,8.2971531,1901.0,1900.8,5.26082]
[1742294980454,0.77468531,1900.9,1900.8,5.26082]
[1742294980850,0.06025612,1900.9,1900.8,6.06972]
[1742294981281,7.68674723,1901.0,1900.9,5.26066]
[1742294983562,3.0,1901.0,1900.9,5.26066]
[1742294990801,3.0,1901.0,1900.9,6.09266]
[1742294990968,3.0,1901.0,1900.9,7.228008]
[1742294991169,3.05852957,1901.0,1900.9,7.228008]
[1742294995530,9.57e-06,1901.0,1900.9,7.228008]
[1742294995714,9.04e-06,1901.0,1900.9,7.228008]
[1742294995876,7.68674723,1901.4,1901.3,5.25955]
[1742294996202,3.0,1901.4,1901.3,5.25955]
[1742294996417,7.68674723,1901.4,1901.3,5.25955]
[1742294997427,8.23704723,1901.4,1901.3,5.25955]
[1742295000789,8.23704723,1901.4,1901.2,5.25971]
[1742295001116,5.23704723,1901.4,1901.3,5.25955]
[1742295001415,0.5503,1901.1,1900.9,5.26062]
[1742295001590,7.68674723,1901.0,1900.9,10.52119]
[1742295001790,7.68674723,1901.0,1900.9,5.26057]
[1742295003214,8.13367806,1901.0,1900.8,5.2609]
[1742295003426,0.5503,1900.8,1900.6,5.26141]
[1742295003585,7.68674723,1900.7,1900.6,5.26141]
[1742295003980,7.73938034,1900.7,1900.6,5.26141]
[1742295004383,3.05263311,1900.7,1900.6,5.26141]
[1742295004786,7.73938034,1900.7,1900.6,5.26141]
[1742295005007,7.73938034,1900.7,1900.6,6.393343]
[1742295006620,7.73938034,1900.7,1900.6,5.26141]
[1742295009923,4.73938034,1900.7,1900.6,5.26141]
[1742295010907,7.73938034,1900.7,1900.6,5.26141]
[1742295011087,8.28968034,1900.7,1900.6,5.26141]
[1742295011494,3.0,1900.6,1900.5,5.26172]
[1742295011787,8.23704723,1900.7,1900.6,5.26149]
[1742295012328,7.68674723,1900.7,1900.6,5.26149]
[1742295012618,3.0,1900.7,1900.6,5.26149]
[1742295014823,9.37349446,1900.8,1900.7,5.26121]
[1742295015595,10.36587391,1900.8,1900.6,5.26138]
[1742295015826,10.36587391,1900.8,1900.6,10.52276]
[1742295016026,10.36587391,1900.8,1900.6,5.26134]
[1742295017004,11.69912668,1900.8,1900.7,5.26121]
[1742295017393,16.38587391,1900.8,1900.7,5.26121]
[1742295018231,6.02,1900.8,1900.7,5.26121]
[1742295018531,10.70674723,1900.8,1900.7,5.26121]
[1742295019531,13.70674723,1900.8,1900.7,5.26121]
[1742295021315,13.75878823,1900.8,1900.7,5.26121]
[1742295022937,7.73878823,1900.8,1900.7,5.26121]
[1742295025038,3.052041,1900.8,1900.7,5.26121]
[1742295025339,3.052041,1900.8,1900.7,6.313465]
[1742295025528,3.052041,1900.8,1900.7,7.077365]
[1742295025706,0.052041,1900.8,1900.7,7.077365]
[1742295025906,3.052041,1900.8,1900.7,7.077365]
[1742295029029,7.73878823,1900.8,1900.7,5.26121]
[1742295030233,7.73878823,1900.8,1900.6,5.26134]
[1742295030740,7.73878823,1900.8,1900.6,10.52269]
[1742295031223,7.73878823,1900.8,1900.6,5.26134]
[1742295031842,0.5503,1900.7,1900.4,5.26192]
[1742295032154,7.68674723,1900.6,1900.4,5.26192]
[1742295032531,0.67262538,1900.5,1900.3,5.26227]
[1742295032860,7.68674723,1900.4,1900.3,5.26227]
[1742295033146,7.80843012,1900.4,1900.3,5.26227]
[1742295033523,3.0,1900.3,1900.2,5.26257]
[1742295033721,3.0,1900.3,1900.1,10.52561]
[1742295033946,7.68674723,1900.2,1900.1,5.26277]
[1742295034122,7.80843012,1900.2,1900.1,5.26277]
[1742295035161,7.80843012,1900.2,1899.4,1.07979536]
[1742295035162,5.26321,1900.0,1899.4,1.07979536]
[1742295035356,0.5503,1899.7,1899.5,5.26435]
[1742295035546,4.68674723,1899.6,1899.5,5.26435]
[1742295036060,4.80792796,1899.6,1899.5,5.26435]
[1742295036256,0.12118073,1899.6,1899.5,7.117455]
[1742295036463,6.42171931,1900.4,1899.5,7.117455]
[1742295036464,4.68674723,1899.9,1899.8,5.26371]
[1742295036638,4.68674723,1899.9,1899.8,6.04941]
[1742295036954,4.80309136,1899.9,1899.8,6.04941]
[1742295039376,4.80309136,1899.9,1899.8,5.26371]
[1742295039582,7.80309136,1899.9,1899.8,5.26371]
[1742295039947,3.11634413,1899.9,1899.8,5.26371]
[1742295041868,3.11634413,1899.9,1899.8,6.09460943]
[1742295042987,3.11634413,1899.9,1899.8,5.26371]
[1742295044262,8.26371,1899.8,1899.7,5.26387]
[1742295044483,7.68674723,1899.8,1899.7,5.26387]
[1742295044989,7.80309136,1899.8,1899.7,5.26387]
[1742295046144,13.06680136,1899.8,1899.5,5.26449]
[1742295046358,7.68674723,1899.6,1899.5,10.52887]
[1742295046729,7.68674723,1899.6,1899.5,5.26438]
[1742295047068,7.80309136,1899.6,1899.5,5.26454]
[1742295049772,7.80309136,1899.6,1899.5,6.06534]
[1742295050743,7.80309136,1899.6,1899.5,5.26454]
[1742295052452,7.80309136,1899.6,1899.5,6.08514]
[1742295056776,7.80309136,1899.6,1899.5,7.220121]
[1742295057498,7.80309136,1899.6,1899.5,6.08514]
[1742295058682,7.80309136,1899.6,1899.5,5.26454]
[1742295062077,3.0,1899.5,1899.4,5.26465]
[1742295062259,3.5503,1899.5,1899.4,5.26465]
[1742295062459,3.66226057,1899.5,1899.4,5.26465]
[1742295062657,3.11196057,1899.5,1899.4,5.26465]
[1742295063250,3.11196057,1899.5,1899.4,6.08405]
[1742295067659,3.11196057,1899.5,1899.4,7.218963]
[1742295068085,0.11196057,1899.5,1899.4,7.218963]
[1742295068870,6.02,1900.2,1899.8,6.09571]
[1742295068871,4.68674723,1899.9,1899.8,6.09571]
[1742295069186,7.68674723,1899.9,1899.8,6.09571]
[1742295075066,7.68674723,1899.9,1899.8,5.26371]
[1742295078202,9.00572195,1899.9,1899.7,10.52773]
[1742295078369,9.00572195,1899.9,1899.7,5.26386]
[1742295078772,3.0,1899.8,1899.6,5.26423]
[1742295078972,5.53704723,1899.7,1899.6,5.26423]
[1742295080700,3.0,1899.6,1899.5,5.26451]
[1742295081499,3.10819768,1899.6,1899.5,5.26451]
[1742295083703,3.10819768,1899.6,1899.4,5.26478]
[1742295083884,7.68674723,1899.5,1899.4,10.52945]
[1742295084079,7.68674723,1899.5,1899.4,5.26467]
[1742295084402,3.0,1899.4,1899.2,5.26517]
[1742295084699,7.68674723,1899.3,1899.2,5.26517]
[1742295084872,7.79494491,1899.3,1899.2,5.26517]
[1742295086303,7.79494491,1899.3,1899.2,6.02007]
[1742295086612,7.79494491,1899.3,1899.2,7.14863]
[1742295091511,7.79494491,1899.3,1899.2,5.26517]
[1742295103044,7.79494491,1899.3,1899.1,5.26552]
[1742295103210,7.79494491,1899.3,1899.1,10.53103]
[1742295103596,7.79494491,1899.3,1899.1,5.26551]
[1742295103840,7.79494491,1899.3,1899.1,10.53102]
[1742295104240,7.68674723,1899.2,1899.1,5.26551]
[1742295104395,3.0,1899.2,1899.1,5.26551]
[1742295104596,3.10757067,1899.2,1899.1,5.26551]
[1742295104902,3.65787067,1899.2,1899.1,5.26551]
[1742295105307,5.26551,1899.1,1898.9,5.2661]
[1742295105627,0.5503,1898.9,1898.8,5.26644]
[1742295106201,0.65742556,1898.9,1898.8,5.26644]
[1742295106400,5.34417279,1898.9,1898.8,5.26644]
[1742295107400,8.34417279,1898.9,1898.6,5.26692]
[1742295107602,7.68674723,1898.7,1898.6,5.26692]
[1742295107795,8.09060007,1898.7,1898.6,5.26692]
[1742295108013,8.19753339,1898.7,1898.6,5.26692]
[1742295109940,7.79368055,1898.7,1898.6,5.26692]
[1742295112258,0.10693332,1898.7,1898.6,6.02302]
[1742295112410,0.10693332,1898.7,1898.6,7.152049]
[1742295112609,4.68674723,1898.8,1898.7,5.26676]
[1742295116625,7.68674723,1898.8,1898.7,5.26676]
[1742295117421,3.0,1898.7,1898.6,5.26692]
[1742295118113,0.5503,1898.6,1898.4,5.26746]
[1742295118318,0.5503,1898.6,1898.4,10.53488]
[1742295118319,7.68674723,1898.5,1898.4,10.53488]
[1742295119522,7.68674723,1898.5,1898.4,5.26742]
[1742295120446,7.68674723,1898.5,1898.3,10.53558]
[1742295120650,7.68674723,1898.5,1898.4,5.26759]
[1742295124061,7.68674723,1898.5,1898.3,5.26776]
[1742295124222,0.75567504,1898.4,1898.3,10.53544]
[1742295124429,7.68674723,1898.5,1898.4,5.26759]
[1742295126441,7.79261782,1898.5,1898.4,6.06049]
[1742295129233,7.79261782,1898.5,1898.4,5.26759]
[1742295131335,8.34291782,1898.5,1898.4,5.26759]
[1742295132685,7.79261782,1898.5,1898.4,5.26759]
[1742295135371,0.10587059,1898.5,1898.4,5.26759]
[1742295135666,3.0,1898.5,1898.4,5.26759]
[1742295135967,3.10581996,1898.5,1898.4,5.26759]
[1742295136138,3.10581996,1898.5,1898.4,6.08019]
[1742295136869,0.10581996,1898.5,1898.4,7.741752]
[1742295137166,4.68674723,1898.9,1898.8,5.26648]
[1742295137574,4.79266843,1898.9,1898.8,5.26648]
[1742295137961,0.1059212,1898.9,1898.8,5.26648]
[1742295138159,0.26118209,1899.3,1898.9,5.2662]
[1742295138364,16.88022,1899.4,1899.0,10.53154]
[1742295138562,3.0,1899.3,1899.1,5.26551]
[1742295138743,3.0,1899.3,1899.1,10.53104]
[1742295138949,0.5503,1899.2,1899.0,5.26592]
[1742295139154,0.93217401,1899.2,1899.0,5.26592]
[1742295139483,7.68674723,1899.1,1899.0,5.26578]
[1742295140180,8.07660135,1899.1,1899.0,5.26578]
[1742295141084,8.18269462,1899.1,1899.0,5.26578]
[1742295146283,3.49594739,1899.1,1899.0,5.26578]
[1742295148072,0.10609327,1899.1,1899.0,5.26578]
[1742295148274,4.68674723,1899.2,1899.1,5.26565]
[1742295148476,7.79320493,1899.2,1899.1,5.26565]
[1742295149195,3.0,1899.1,1899.0,5.26578]
[1742295149493,0.10659939,1899.1,1899.0,10.53153]
[1742295149692,4.68674723,1899.2,1899.1,5.26565]
[1742295149890,4.79334662,1899.2,1899.1,5.26565]
[1742295150083,8.17953063,1899.2,1899.1,5.26565]
[1742295150594,7.79334662,1899.2,1899.1,5.26565]
[1742295151362,7.79334662,1899.2,1899.1,6.27967654]
[1742295151964,4.79334662,1899.2,1899.1,6.27967654]
[1742295152158,4.79334662,1899.2,1899.1,7.06887654]
[1742295156492,0.10659939,1899.2,1899.1,7.06887654]
[1742295157328,5.09e-06,1899.2,1899.1,7.06887654]
[1742295157606,6.02,1900.3,1900.0,5.26315]
[1742295157607,0.5503,1900.1,1900.0,5.26315]
[1742295157769,0.90533,1900.1,1900.0,5.26315]
[1742295157970,0.5503,1900.1,1900.0,5.26315]
[1742295158601,8.23704723,1900.1,1899.9,5.2634]
[1742295158904,3.0,1900.0,1899.9,10.52675]
[1742295159097,3.0,1900.0,1899.9,5.26335]
[1742295159403,0.5503,1900.1,1900.0,5.26315]
[1742295159704,5.23704723,1900.1,1900.0,5.26315]
[1742295159901,8.63991671,1900.1,1900.0,5.26315]
[1742295160804,3.0,1900.0,1899.9,5.26333]
[1742295162617,0.5503,1899.9,1899.4,0.7555]
[1742295162833,0.5503,1899.9,1899.7,5.26395]
[1742295163122,0.5503,1899.9,1899.7,10.52781]
[1742295164925,0.10021675,1899.8,1899.7,10.52781]
[1742295165104,7.68674723,1899.8,1899.7,10.52781]
[1742295165308,7.78686285,1899.8,1899.7,10.52781]
[1742295165509,7.78686285,1899.8,1899.6,10.5283]
[1742295165816,4.68674723,1899.7,1899.6,5.26409]
[1742295166420,4.78686285,1899.7,1899.6,5.26409]
[1742295166618,3.0,1899.6,1899.5,5.26444]
[1742295167287,3.10011562,1899.6,1899.5,5.26444]
[1742295168227,3.10011562,1899.6,1899.5,7.07976]
[1742295172685,4.78686285,1899.6,1899.5,7.07976]
[1742295172897,4.78686285,1899.6,1899.5,6.02684]
[1742295173115,4.78686285,1899.6,1899.5,5.26444]
[1742295176619,7.78686285,1899.6,1899.5,5.26444]
[1742295177387,7.77056589,1899.6,1899.5,5.26444]
[1742295180295,3.0,1899.5,1899.4,5.26469]
[1742295180496,3.09985728,1899.5,1899.4,5.26469]
[1742295181115,3.09985728,1899.5,1899.3,5.26503]
[1742295181338,7.68674723,1899.4,1899.3,5.26498]
[1742295181823,7.78660451,1899.4,1899.3,5.26498]
[1742295182030,7.78660451,1899.4,1899.2,5.26525]
[1742295182194,7.78660451,1899.4,1899.2,10.53048]
[1742295183437,7.78660451,1899.4,1899.2,5.26523]
[1742295183598,7.78660451,1899.4,1899.2,10.53047]
[1742295183922,7.78660451,1899.4,1899.3,5.26509]
[1742295185750,8.62029496,1899.4,1899.3,5.26509]
[1742295185900,7.78660451,1899.4,1899.3,5.26509]
[1742295186935,3.09985728,1899.4,1899.3,5.26509]
[1742295188004,3.09985728,1899.4,1899.3,6.06889]
[1742295189037,3.09985728,1899.4,1899.3,11.10889]
[1742295189762,0.09985728,1899.4,1899.3,11.10889]
[1742295190057,3.0,1899.6,1899.5,6.06804]
[1742295197542,3.0,1899.6,1899.5,5.26454]
[1742295201256,3.09988761,1899.6,1899.5,5.26454]
[1742295208482,3.09988761,1899.6,1899.5,6.07164]
[1742295208979,3.09988761,1899.6,1899.5,5.26454]
[1742295210682,4.42885109,1899.6,1899.4,5.2647]
[1742295210881,3.0,1899.4,1899.3,5.26498]
[1742295211461,3.09981681,1899.4,1899.3,5.26498]
[1742295212655,3.09981681,1899.4,1899.2,10.53058]
[1742295212948,7.68674723,1899.3,1899.2,5.26526]
[1742295213671,7.78656404,1899.3,1899.2,5.26526]
[1742295213872,3.0,1899.2,1899.0,5.26588]
[1742295214127,3.0,1899.0,1898.9,10.53223]
[1742295214386,3.0,1899.0,1898.9,5.26608]
[1742295214749,3.09961453,1899.0,1898.9,5.26608]
[1742295216781,3.09961453,1899.0,1898.8,10.53277]
[1742295216987,4.68674723,1898.9,1898.8,5.26636]
[1742295217287,4.78604813,1898.9,1898.8,5.26636]
[1742295217906,3.0,1898.8,1898.7,5.26664]
[1742295218110,7.68674723,1898.8,1898.7,5.26664]
[1742295218411,7.78604813,1898.8,1898.7,5.26664]
[1742295220530,3.0993009,1898.8,1898.7,7.076206]
[1742295220694,0.0993009,1898.8,1898.7,7.076206]
[1742295221104,3.0,1898.9,1898.8,5.26648]
[1742295221916,7.68674723,1898.9,1898.8,5.26648]
[1742295223589,0.39132258,1899.1,1899.0,5.26592]
[1742295223814,3.0,1899.2,1899.0,10.53172]